lending/lending_fUSD_20250224
["ID","MTS","AMOUNT","RATE_DAILY","PERIOD"]
[354285908,1740393101111,-1803.65,0.00017342,2]
[354285909,1740393101120,-245.69534202,0.00017342,2]
[354285910,1740393101129,-2187.68,0.00017342,2]
[354285911,1740393101139,-728.65,0.00017342,2]
[354285912,1740393101148,-6441.69,0.00017342,2]
[354285913,1740393101158,-530.59,0.00017342,2]
[354285914,1740393101167,-552.52,0.00017342,2]
[354285915,1740393101176,-1823.33,0.00017342,2]
[354285916,1740393101185,-500.0,0.00017342,2]
[354285917,1740393101195,-580.19,0.00017342,2]
[354285918,1740393101204,-2359.28,0.00017342,2]
[354285919,1740393101214,-500.0,0.00017342,2]
[354285920,1740393101224,-6310.46,0.00017342,2]
[354285921,1740393101233,-1754.56,0.00017342,2]
[354285922,1740393101242,-1453.83,0.00017342,2]
[354285923,1740393101251,-2395.13,0.00017342,2]
[354285924,1740393101260,-500.0,0.00017342,2]
[354285925,1740393101270,-500.0,0.00017342,2]
[354285926,1740393101279,-500.0,0.00017342,2]
[354285927,1740393101289,-1530.26,0.00017342,2]
[354285928,1740393101298,-1729.98,0.00017342,2]
[354285929,1740393101308,-523.34,0.00017342,2]
[354285930,1740393101319,-1888.7,0.00017342,2]
[354285931,1740393101328,-887.15,0.00017342,2]
[354285932,1740393101339,-561.68,0.00017342,2]
[354285933,1740393101348,-1893.25,0.00017342,2]
[354285934,1740393101357,-1229.83,0.00017342,2]
[354285935,1740393101368,-1592.71,0.00017342,2]
[354285936,1740393101378,-1352.31,0.00017342,2]
[354285937,1740393101388,-2122.57,0.00017342,2]
[354285938,1740393101397,-1563.39,0.00017342,2]
[354285939,1740393101407,-500.0,0.00017342,2]
[354285940,1740393101417,-3181.44,0.00017342,2]
[354285941,1740393101426,-931.35,0.00017342,2]
[354285942,1740393101436,-1399.69,0.00017342,2]
[354285943,1740393101445,-1364.19,0.00017342,2]
[354285944,1740393101455,-1158.15,0.00017342,2]
[354285945,1740393101466,-947.59,0.00017342,2]
[354285946,1740393101475,-1055.82,0.00017342,2]
[354285947,1740393101484,-1743.38,0.00017342,2]
[354285948,1740393101494,-1124.16,0.00017342,2]
[354285949,1740393101503,-1245.15,0.00017342,2]
[354285950,1740393101512,-862.87,0.00017342,2]
[354285951,1740393101522,-737.22,0.00017342,2]
[354285952,1740393101531,-3379.84,0.00017342,2]
[354285953,1740393101540,-2190.52,0.00017342,2]
[354285954,1740393101550,-1993.18,0.00017342,2]
[354285955,1740393101559,-2255.32,0.00017342,2]
[354285956,1740393101568,-2112.38,0.00017342,2]
[354285957,1740393101577,-1406.66,0.00017342,2]
[354285958,1740393101586,-511.28,0.00017342,2]
[354285959,1740393101596,-1338.87,0.00017342,2]
[354285960,1740393101605,-1163.78,0.00017342,2]
[354285961,1740393101614,-899.89,0.00017342,2]
[354285962,1740393101624,-2575.6,0.00017342,2]
[354285963,1740393101633,-1931.36,0.00017342,2]
[354285964,1740393101642,-500.0,0.00017342,2]
[354285965,1740393101651,-3875.26,0.00017342,2]
[354285966,1740393101660,-714.88,0.00017342,2]
[354285967,1740393101670,-4627.1,0.00017342,2]
[354285968,1740393101679,-651.74,0.00017342,2]
[354285969,1740393101688,-2331.1,0.00017342,2]
[354285970,1740393101698,-794.55,0.00017342,2]
[354285971,1740393101707,-811.87,0.00017342,2]
[354285972,1740393101716,-1360.35,0.00017342,2]
[354285973,1740393101726,-757.29,0.00017342,2]
[354285974,1740393101745,-500.0,0.00017342,2]
[354285975,1740393101762,-1905.52,0.00017342,2]
[354285976,1740393101782,-500.0,0.00017342,2]
[354285977,1740393101803,-1012.51,0.00017342,2]
[354285978,1740393101817,-1832.68,0.00017342,2]
[354285979,1740393101838,-500.0,0.00017342,2]
[354285980,1740393101858,-1130.11,0.00017342,2]
[354285981,1740393101878,-500.0,0.00017342,2]
[354285982,1740393101896,-2153.01,0.00017342,2]
[354285983,1740393101914,-500.0,0.00017342,2]
[354285984,1740393101933,-1435.16,0.00017342,2]
[354285985,1740393101946,-2176.8,0.00017342,2]
[354285986,1740393101965,-500.0,0.00017342,2]
[354285987,1740393101979,-1895.66,0.00017342,2]
[354285988,1740393101996,-683.14,0.00017342,2]
[354285989,1740393102008,-500.0,0.00017342,2]
[354285990,1740393102024,-1239.34,0.00017342,2]
[354285991,1740393102040,-2117.99,0.00017342,2]
[354285992,1740393102054,-2225.26,0.00017342,2]
[354285993,1740393102068,-1435.64,0.00017342,2]
[354285994,1740393102085,-876.4,0.00017342,2]
[354285995,1740393102099,-1250.73,0.00017342,2]
[354285996,1740393102113,-1238.73,0.00017342,2]
[354285997,1740393102128,-1448.82,0.00017342,2]
[354285998,1740393102142,-1222.74,0.00017342,2]
[354285999,1740393102156,-500.0,0.00017342,2]
[354286000,1740393102170,-2133.06,0.00017342,2]
[354286001,1740393102184,-500.0,0.00017342,2]
[354286002,1740393102199,-902.39,0.00017342,2]
[354286003,1740393102213,-2952.34,0.00017342,2]
[354286004,1740393102227,-637.55,0.00017342,2]
[354286005,1740393102242,-1714.23,0.00017342,2]
[354286006,1740393102256,-1345.12,0.00017342,2]
[354286007,1740393102271,-1346.53,0.00017342,2]
[354286008,1740393102285,-1153.09,0.00017342,2]
[354286009,1740393102300,-500.0,0.00017342,2]
[354286010,1740393102314,-1050.72,0.00017342,2]
[354286011,1740393102330,-1549.23,0.00017342,2]
[354286012,1740393102345,-482.08815826,0.00017342,2]
[354286013,1740393102359,-500.0,0.00017342,2]
[354286014,1740393102373,-2116.78,0.00017342,2]
[354286015,1740393102388,-1323.73,0.00017342,2]
[354286016,1740393102402,-1976.05,0.00017342,2]
[354286017,1740393102417,-968.02,0.00017342,2]
[354286018,1740393102431,-2709.27,0.00017342,2]
[354286019,1740393102446,-1417.13,0.00017342,2]
[354286020,1740393102461,-649.11,0.00017342,2]
[354286021,1740393102475,-517.98,0.00017342,2]
[354286022,1740393102489,-1383.1,0.00017342,2]
[354286023,1740393102504,-575.9,0.00017342,2]
[354286024,1740393102519,-639.53,0.00017342,2]
[354286025,1740393102532,-2137.13,0.00017342,2]
[354286026,1740393102546,-1329.85,0.00017342,2]
[354286027,1740393102560,-2522.02,0.00017342,2]
[354286028,1740393102574,-500.0,0.00017342,2]
[354286029,1740393102590,-1057.9,0.00017342,2]
[354286030,1740393102605,-2173.78,0.00017342,2]
[354286031,1740393102619,-929.53,0.00017346,2]
[354286032,1740393102634,-400.0,0.0001737,2]
[354286033,1740393102648,-400.0,0.0001737,2]
[354286034,1740393102662,-927.18,0.0001739,2]
[354286035,1740393102677,-4000.0,0.0001741,2]
[354286036,1740393102691,-205.0,0.0001742,2]
[354286037,1740393102704,-201.0,0.0001742,2]
[354286038,1740393102720,-205.0,0.0001742,2]
[354286039,1740393102734,-500.0,0.00017424,2]
[354286040,1740393102748,-500.0,0.00017424,2]
[354286041,1740393102763,-500.0,0.00017424,2]
[354286042,1740393102777,-500.0,0.00017424,2]
[354286043,1740393102791,-500.0,0.00017424,2]
[354286044,1740393102805,-500.0,0.00017424,2]
[354286045,1740393102820,-513.04,0.00017424,2]
[354286046,1740393102834,-500.0,0.00017424,2]
[354286047,1740393102848,-705.82,0.00017424,2]
[354286048,1740393102865,-500.0,0.00017424,2]
[354286049,1740393102878,-568.69,0.00017424,2]
[354286050,1740393102892,-500.0,0.00017424,2]
[354286051,1740393102906,-500.0,0.00017424,2]
[354286052,1740393102923,-613.91,0.00017424,2]
[354286053,1740393102939,-829.52,0.00017424,2]
[354286054,1740393102953,-614.79,0.00017424,2]
[354286055,1740393102967,-500.0,0.00017424,2]
[354286056,1740393102981,-579.34,0.00017424,2]
[354286057,1740393102996,-656.83,0.00017424,2]
[354286058,1740393103012,-801.72,0.00017424,2]
[354286059,1740393103027,-550.16139256,0.00017424,2]
[354286060,1740393103042,-500.0,0.00017424,2]
[354286061,1740393103058,-500.0,0.00017424,2]
[354286062,1740393103073,-778.26,0.00017424,2]
[354286063,1740393103090,-812.09,0.00017424,2]
[354286064,1740393103105,-563.47,0.00017424,2]
[354286065,1740393103120,-500.0,0.00017424,2]
[354286066,1740393103136,-200.25391401,0.00017424,2]
[354286067,1740393103150,-594.42,0.00017424,2]
[354286068,1740393103330,-1017.59,0.00017424,2]
[354286069,1740393103361,-1173.0,0.00017424,2]
[354286070,1740393103371,-500.0,0.00017424,2]
[354286071,1740393103380,-985.36,0.00017424,2]
[354286072,1740393103389,-500.0,0.00017424,2]
[354286073,1740393103399,-714.1,0.00017424,2]
[354286074,1740393103408,-601.34,0.00017424,2]
[354286075,1740393103417,-1166.36,0.00017424,2]
[354286076,1740393103426,-500.0,0.00017424,2]
[354286077,1740393103435,-500.0,0.00017424,2]
[354286078,1740393103444,-655.58,0.00017424,2]
[354286079,1740393103452,-568.87,0.00017424,2]
[354286080,1740393103461,-500.0,0.00017424,2]
[354286081,1740393103470,-500.0,0.00017424,2]
[354286082,1740393103479,-817.86,0.00017424,2]
[354286083,1740393103488,-500.0,0.00017424,2]
[354286084,1740393103498,-500.0,0.00017424,2]
[354286085,1740393103507,-554.61,0.00017424,2]
[354286086,1740393103516,-607.13,0.00017424,2]
[354286087,1740393103525,-500.0,0.00017424,2]
[354286088,1740393103534,-299.279106,0.00017424,2]
[354286089,1740393103543,-587.42,0.00017424,2]
[354286090,1740393103551,-500.0,0.00017424,2]
[354286091,1740393103560,-500.0,0.00017424,2]
[354286092,1740393103569,-976.63,0.00017424,2]
[354286093,1740393103580,-758.07,0.00017424,2]
[354286094,1740393103588,-327.093108,0.00017424,2]
[354286095,1740393103597,-912.3,0.00017424,2]
[354286096,1740393103607,-966.44,0.00017424,2]
[354286097,1740393103615,-571.99,0.00017424,2]
[354286098,1740393103624,-583.89,0.00017424,2]
[354286099,1740393103633,-508.91,0.00017424,2]
[354286100,1740393103642,-500.0,0.00017424,2]
[354286101,1740393103651,-553.45459239,0.00017424,2]
[354286102,1740393103660,-825.69,0.00017424,2]
[354286103,1740393103669,-500.0,0.00017424,2]
[354286104,1740393103678,-793.11,0.00017424,2]
[354286105,1740393103687,-568.54,0.00017424,2]
[354286106,1740393103696,-688.09,0.00017424,2]
[354286107,1740393103705,-500.0,0.00017424,2]
[354286108,1740393103714,-827.28,0.00017424,2]
[354286109,1740393103724,-409.47748591,0.00017424,2]
[354286110,1740393103733,-500.0,0.00017424,2]
[354286111,1740393103743,-500.0,0.00017424,2]
[354286112,1740393103753,-500.0,0.00017424,2]
[354286113,1740393103763,-571.55,0.00017424,2]
[354286114,1740393103772,-501.11,0.00017424,2]
[354286115,1740393103781,-429.56378577,0.00017424,2]
[354286116,1740393103791,-590.2,0.00017424,2]
[354286117,1740393103800,-500.0,0.00017424,2]
[354286118,1740393103810,-500.0,0.00017424,2]
[354286119,1740393103820,-500.0,0.00017424,2]
[354286120,1740393103829,-500.0,0.00017424,2]
[354286121,1740393103839,-500.0,0.00017424,2]
[354286122,1740393103849,-500.0,0.00017424,2]
[354286123,1740393103860,-865.78,0.00017424,2]
[354286124,1740393103869,-500.0,0.00017424,2]
[354286125,1740393103879,-792.11,0.00017424,2]
[354286126,1740393103888,-502.07,0.00017424,2]
[354286127,1740393103898,-500.0,0.00017424,2]
[354286128,1740393103909,-732.07,0.00017424,2]
[354286129,1740393103919,-536.67,0.00017424,2]
[354286130,1740393103929,-772.46,0.00017424,2]
[354286131,1740393103939,-994.92,0.00017424,2]
[354286132,1740393103948,-719.27,0.00017424,2]
[354286133,1740393103957,-500.0,0.00017424,2]
[354286134,1740393103966,-732.94,0.00017424,2]
[354286135,1740393103976,-894.91,0.00017424,2]
[354286136,1740393103985,-835.59,0.00017424,2]
[354286137,1740393103994,-1034.89,0.00017424,2]
[354286138,1740393104004,-500.0,0.00017424,2]
[354286139,1740393104013,-1083.32,0.00017424,2]
[354286140,1740393104022,-649.75,0.00017424,2]
[354286141,1740393104031,-547.93,0.00017424,2]
[354286142,1740393104040,-689.58,0.00017424,2]
[354286143,1740393104050,-685.53,0.00017424,2]
[354286144,1740393104059,-500.0,0.00017424,2]
[354286145,1740393104068,-500.0,0.00017424,2]
[354286146,1740393104077,-500.0,0.00017424,2]
[354286147,1740393104086,-500.0,0.00017424,2]
[354286148,1740393104096,-500.0,0.00017424,2]
[354286149,1740393104106,-770.75,0.00017424,2]
[354286150,1740393104115,-596.16,0.00017424,2]
[354286151,1740393104123,-1066.15,0.00017424,2]
[354286152,1740393104134,-939.56,0.00017424,2]
[354286153,1740393104144,-535.53,0.00017424,2]
[354286154,1740393104153,-1713.16,0.00017424,2]
[354286155,1740393104162,-999.11,0.00017424,2]
[354286156,1740393104171,-545.3,0.00017424,2]
[354286157,1740393104180,-988.44,0.00017424,2]
[354286158,1740393104189,-1914.59,0.00017424,2]
[354286159,1740393104198,-1771.19,0.00017424,2]
[354286160,1740393104208,-500.0,0.00017424,2]
[354286161,1740393104216,-4053.22,0.00017424,2]
[354286162,1740393104226,-857.92,0.00017424,2]
[354286163,1740393104234,-1114.15,0.00017424,2]
[354286164,1740393104244,-2047.21,0.00017424,2]
[354286165,1740393104253,-507.52,0.00017424,2]
[354286166,1740393104262,-760.3,0.00017424,2]
[354286167,1740393104271,-1134.98,0.00017424,2]
[354286168,1740393104280,-1537.05,0.00017424,2]
[354286169,1740393104289,-2359.95,0.00017424,2]
[354286170,1740393104298,-1103.35,0.00017424,2]
[354286171,1740393104307,-4184.04,0.00017424,2]
[354286172,1740393104316,-1851.33,0.00017424,2]
[354286173,1740393104325,-2354.25,0.00017424,2]
[354286174,1740393104335,-613.1,0.00017424,2]
[354286175,1740393104345,-971.17,0.00017424,2]
[354286176,1740393104354,-3563.69,0.00017424,2]
[354286177,1740393104363,-500.0,0.00017424,2]
[354286178,1740393104372,-2009.96,0.00017424,2]
[354286179,1740393104381,-500.0,0.00017424,2]
[354286180,1740393104390,-1543.4,0.00017424,2]
[354286181,1740393104399,-533.77,0.00017424,2]
[354286182,1740393104408,-2242.87,0.00017424,2]
[354286183,1740393104418,-633.74,0.00017424,2]
[354286184,1740393104426,-500.0,0.00017424,2]
[354286185,1740393104435,-1803.65,0.00017424,2]
[354286186,1740393104444,-2187.68,0.00017424,2]
[354286187,1740393104454,-728.65,0.00017424,2]
[354286188,1740393104463,-6441.69,0.00017424,2]
[354286189,1740393104472,-530.59,0.00017424,2]
[354286190,1740393104481,-552.52,0.00017424,2]
[354286191,1740393104490,-1823.33,0.00017424,2]
[354286192,1740393104499,-500.0,0.00017424,2]
[354286193,1740393104508,-580.19,0.00017424,2]
[354286194,1740393104517,-2359.28,0.00017424,2]
[354286195,1740393104526,-500.0,0.00017424,2]
[354286196,1740393104535,-6310.46,0.00017424,2]
[354286197,1740393104544,-1754.56,0.00017424,2]
[354286198,1740393104553,-1453.83,0.00017424,2]
[354286199,1740393104562,-2395.13,0.00017424,2]
[354286200,1740393104571,-500.0,0.00017424,2]
[354286201,1740393104580,-500.0,0.00017424,2]
[354286202,1740393104589,-500.0,0.00017424,2]
[354286203,1740393104598,-1530.26,0.00017424,2]
[354286204,1740393104607,-1729.98,0.00017424,2]
[354286205,1740393104616,-523.34,0.00017424,2]
[354286206,1740393104626,-1888.7,0.00017424,2]
[354286207,1740393104636,-887.15,0.00017424,2]
[354286208,1740393104645,-561.68,0.00017424,2]
[354286209,1740393104654,-1893.25,0.00017424,2]
[354286210,1740393104664,-1229.83,0.00017424,2]
[354286211,1740393104673,-1592.71,0.00017424,2]
[354286212,1740393104683,-1352.31,0.00017424,2]
[354286213,1740393104692,-2122.57,0.00017424,2]
[354286214,1740393104701,-1563.39,0.00017424,2]
[354286215,1740393104711,-500.0,0.00017424,2]
[354286216,1740393104720,-3181.44,0.00017424,2]
[354286217,1740393104729,-931.35,0.00017424,2]
[354286218,1740393104739,-1399.69,0.00017424,2]
[354286219,1740393104748,-1364.19,0.00017424,2]
[354286220,1740393104758,-1158.15,0.00017424,2]
[354286221,1740393104767,-947.59,0.00017424,2]
[354286222,1740393104776,-1055.82,0.00017424,2]
[354286223,1740393104786,-1743.38,0.00017424,2]
[354286224,1740393104796,-1124.16,0.00017424,2]
[354286225,1740393104806,-1245.15,0.00017424,2]
[354286226,1740393104815,-862.87,0.00017424,2]
[354286227,1740393104825,-737.22,0.00017424,2]
[354286228,1740393104837,-3379.84,0.00017424,2]
[354286229,1740393104846,-2190.52,0.00017424,2]
[354286230,1740393104857,-1993.18,0.00017424,2]
[354286231,1740393104869,-2255.32,0.00017424,2]
[354286232,1740393104879,-2112.38,0.00017424,2]
[354286233,1740393104888,-1406.66,0.00017424,2]
[354286234,1740393104899,-511.28,0.00017424,2]
[354286235,1740393104909,-1338.87,0.00017424,2]
[354286236,1740393104918,-1163.78,0.00017424,2]
[354286237,1740393104927,-899.89,0.00017424,2]
[354286238,1740393104938,-2575.6,0.00017424,2]
[354286239,1740393104948,-1931.36,0.00017424,2]
[354286240,1740393104957,-500.0,0.00017424,2]
[354286241,1740393104966,-3875.26,0.00017424,2]
[354286242,1740393104976,-714.88,0.00017424,2]
[354286243,1740393104985,-4627.1,0.00017424,2]
[354286244,1740393104994,-651.74,0.00017424,2]
[354286245,1740393105004,-2331.1,0.00017424,2]
[354286246,1740393105013,-794.55,0.00017424,2]
[354286247,1740393105023,-811.87,0.00017424,2]
[354286248,1740393105033,-1360.35,0.00017424,2]
[354286249,1740393105042,-757.29,0.00017424,2]
[354286250,1740393105052,-500.0,0.00017424,2]
[354286251,1740393105061,-1905.52,0.00017424,2]
[354286252,1740393105071,-500.0,0.00017424,2]
[354286253,1740393105080,-1012.51,0.00017424,2]
[354286254,1740393105089,-1832.68,0.00017424,2]
[354286255,1740393105099,-500.0,0.00017424,2]
[354286256,1740393105108,-1130.11,0.00017424,2]
[354286257,1740393105118,-500.0,0.00017424,2]
[354286258,1740393105128,-2153.01,0.00017424,2]
[354286259,1740393105138,-500.0,0.00017424,2]
[354286260,1740393105150,-1435.16,0.00017424,2]
[354286261,1740393105159,-2176.8,0.00017424,2]
[354286262,1740393105169,-500.0,0.00017424,2]
[354286263,1740393105178,-1895.66,0.00017424,2]
[354286264,1740393105188,-683.14,0.00017424,2]
[354286265,1740393105199,-500.0,0.00017424,2]
[354286266,1740393105208,-1239.34,0.00017424,2]
[354286267,1740393105219,-2117.99,0.00017424,2]
[354286268,1740393105228,-2225.26,0.00017424,2]
[354286269,1740393105237,-1435.64,0.00017424,2]
[354286270,1740393105247,-876.4,0.00017424,2]
[354286271,1740393105256,-1250.73,0.00017424,2]
[354286272,1740393105266,-1238.73,0.00017424,2]
[354286273,1740393105275,-1448.82,0.00017424,2]
[354286274,1740393105285,-1222.74,0.00017424,2]
[354286275,1740393105294,-500.0,0.00017424,2]
[354286276,1740393105304,-2133.06,0.00017424,2]
[354286277,1740393105313,-500.0,0.00017424,2]
[354286278,1740393105322,-902.39,0.00017424,2]
[354286279,1740393105334,-2952.34,0.00017424,2]
[354286280,1740393105343,-637.55,0.00017424,2]
[354286281,1740393105352,-1714.23,0.00017424,2]
[354286282,1740393105362,-1345.12,0.00017424,2]
[354286283,1740393105371,-1346.53,0.00017424,2]
[354286284,1740393105381,-1153.09,0.00017424,2]
[354286285,1740393105390,-500.0,0.00017424,2]
[354286286,1740393105399,-1050.72,0.00017424,2]
[354286287,1740393105408,-1549.23,0.00017424,2]
[354286288,1740393105417,-500.0,0.00017424,2]
[354286289,1740393105427,-2116.78,0.00017424,2]
[354286290,1740393105435,-1323.73,0.00017424,2]
[354286291,1740393105444,-1976.05,0.00017424,2]
[354286292,1740393105454,-968.02,0.00017424,2]
[354286293,1740393105463,-2709.27,0.00017424,2]
[354286294,1740393105472,-1417.13,0.00017424,2]
[354286295,1740393105481,-649.11,0.00017424,2]
[354286296,1740393105491,-517.98,0.00017424,2]
[354286297,1740393105500,-1383.1,0.00017424,2]
[354286298,1740393105509,-575.9,0.00017424,2]
[354286299,1740393105517,-639.53,0.00017424,2]
[354286300,1740393105526,-2137.13,0.00017424,2]
[354286301,1740393105535,-1329.85,0.00017424,2]
[354286302,1740393105543,-2522.02,0.00017424,2]
[354286303,1740393105552,-500.0,0.00017424,2]
[354286304,1740393105562,-1057.9,0.00017424,2]
[354286305,1740393105571,-17840.0,0.00017463,7]
[354286306,1740393105583,-295.0037,0.00017488,7]
[354286307,1740393105593,-269685.23488683,0.000175,2]
[354286308,1740393105603,-224104.04498625,0.000175,3]
[354286309,1740393105612,-567.68,0.00017506,2]
[354286310,1740393105621,-931.01,0.00017506,2]
[354286311,1740393105630,-500.0,0.00017506,2]
[354286312,1740393105639,-500.0,0.00017506,2]
[354286313,1740393105648,-545.46748475,0.00017506,2]
[354286314,1740393105657,-500.0,0.00017506,2]
[354286315,1740393105666,-500.0,0.00017506,2]
[354286316,1740393105675,-500.0,0.00017506,2]
[354286317,1740393105684,-500.0,0.00017506,2]
[354286318,1740393105694,-513.04,0.00017506,2]
[354286319,1740393105703,-500.0,0.00017506,2]
[354286320,1740393105851,-705.82,0.00017506,2]
[354286321,1740393105863,-500.0,0.00017506,2]
[354286322,1740393105873,-568.69,0.00017506,2]
[354286323,1740393105882,-500.0,0.00017506,2]
[354286324,1740393105891,-500.0,0.00017506,2]
[354286325,1740393105902,-613.91,0.00017506,2]
[354286326,1740393105911,-829.52,0.00017506,2]
[354286327,1740393105920,-614.79,0.00017506,2]
[354286328,1740393105929,-162.5184058,0.00017506,2]
[354286329,1740393105939,-579.34,0.00017506,2]
[354286330,1740393105949,-656.83,0.00017506,2]
[354286331,1740393105958,-801.72,0.00017506,2]
[354286332,1740393105967,-500.0,0.00017506,2]
[354286333,1740393105977,-500.0,0.00017506,2]
[354286334,1740393105986,-778.26,0.00017506,2]
[354286335,1740393105995,-812.09,0.00017506,2]
[354286336,1740393106004,-563.47,0.00017506,2]
[354286337,1740393106014,-500.0,0.00017506,2]
[354286338,1740393106024,-594.42,0.00017506,2]
[354286339,1740393106033,-1017.59,0.00017506,2]
[354286340,1740393106043,-1173.0,0.00017506,2]
[354286341,1740393106052,-500.0,0.00017506,2]
[354286342,1740393106061,-985.36,0.00017506,2]
[354286343,1740393106070,-500.0,0.00017506,2]
[354286344,1740393106080,-714.1,0.00017506,2]
[354286345,1740393106089,-601.34,0.00017506,2]
[354286346,1740393106098,-1166.36,0.00017506,2]
[354286347,1740393106107,-500.0,0.00017506,2]
[354286348,1740393106115,-500.0,0.00017506,2]
[354286349,1740393106123,-655.58,0.00017506,2]
[354286350,1740393106131,-568.87,0.00017506,2]
[354286351,1740393106139,-500.0,0.00017506,2]
[354286352,1740393106148,-500.0,0.00017506,2]
[354286353,1740393106156,-817.86,0.00017506,2]
[354286354,1740393106164,-500.0,0.00017506,2]
[354286355,1740393106171,-500.0,0.00017506,2]
[354286356,1740393106179,-554.61,0.00017506,2]
[354286357,1740393106187,-607.13,0.00017506,2]
[354286358,1740393106196,-500.0,0.00017506,2]
[354286359,1740393106203,-299.279106,0.00017506,2]
[354286360,1740393106211,-587.42,0.00017506,2]
[354286361,1740393106219,-500.0,0.00017506,2]
[354286362,1740393106226,-500.0,0.00017506,2]
[354286363,1740393106235,-976.63,0.00017506,2]
[354286364,1740393106244,-758.07,0.00017506,2]
[354286365,1740393106252,-327.093108,0.00017506,2]
[354286366,1740393106262,-912.3,0.00017506,2]
[354286367,1740393106273,-966.44,0.00017506,2]
[354286368,1740393106282,-571.99,0.00017506,2]
[354286369,1740393106292,-583.89,0.00017506,2]
[354286370,1740393106301,-508.91,0.00017506,2]
[354286371,1740393106310,-500.0,0.00017506,2]
[354286372,1740393106319,-825.69,0.00017506,2]
[354286373,1740393106328,-500.0,0.00017506,2]
[354286374,1740393106337,-793.11,0.00017506,2]
[354286375,1740393106346,-568.54,0.00017506,2]
[354286376,1740393106355,-688.09,0.00017506,2]
[354286377,1740393106364,-500.0,0.00017506,2]
[354286378,1740393106373,-827.28,0.00017506,2]
[354286379,1740393106382,-500.0,0.00017506,2]
[354286380,1740393106394,-500.0,0.00017506,2]
[354286381,1740393106403,-500.0,0.00017506,2]
[354286382,1740393106413,-571.55,0.00017506,2]
[354286383,1740393106422,-501.11,0.00017506,2]
[354286384,1740393106431,-590.2,0.00017506,2]
[354286385,1740393106441,-500.0,0.00017506,2]
[354286386,1740393106450,-500.0,0.00017506,2]
[354286387,1740393106460,-588.12200887,0.00017506,2]
[354286388,1740393106469,-500.0,0.00017506,2]
[354286389,1740393106479,-500.0,0.00017506,2]
[354286390,1740393106487,-500.0,0.00017506,2]
[354286391,1740393106497,-865.78,0.00017506,2]
[354286392,1740393106506,-500.0,0.00017506,2]
[354286393,1740393106515,-792.11,0.00017506,2]
[354286394,1740393106524,-502.07,0.00017506,2]
[354286395,1740393106532,-500.0,0.00017506,2]
[354286396,1740393106541,-732.07,0.00017506,2]
[354286397,1740393106550,-536.67,0.00017506,2]
[354286398,1740393106560,-772.46,0.00017506,2]
[354286399,1740393106569,-994.92,0.00017506,2]
[354286400,1740393106578,-719.27,0.00017506,2]
[354286401,1740393106588,-500.0,0.00017506,2]
[354286402,1740393106598,-732.94,0.00017506,2]
[354286403,1740393106608,-894.91,0.00017506,2]
[354286404,1740393106617,-835.59,0.00017506,2]
[354286405,1740393106626,-1034.89,0.00017506,2]
[354286406,1740393106636,-500.0,0.00017506,2]
[354286407,1740393106645,-1083.32,0.00017506,2]